Workbook

Sheet от 3 до 7 лет
A1: Утверждаю | H1: Согласовано
A2: Директор ООО"АБК - Пэймент" | H2: Руководитель дошкольной образовательной
A3: Рахматуллин Р.Р. | H3: организации
C8: Примерное 10-дневное меню
C9: для организации питания детей в дошкольных учреждениях
C10: с 8-10,5 - часовым пребыванием от 3 до 7 лет
A12: День 1 - ый
A13: Наименование блюд и | C13: Масса | D13: Кол - во | E13: Кол - во | F13: Пищевые вещества | I13: Энергетическая | J13: Витамин | K13: Сборник рецептур
A14: продуктов | C14: порции | D14: (в гр ) | E14: (в гр ) | I14: ценность
D15: брутто | E15: нетто | F15: белки | G15: жиры | H15: угл-ды | I15: Ккал | J15: С
B16: ЗАВТРАК
A17: Каша "Дружба" молочная | C17: 200 | F17: 5.16 | G17: 3.47 | H17: 23.13 | I17: 144.50 | J17: 0.21 | K17: ТТК №7Д
B18: Крупа рисовая | D18: 15.00 | E18: 15.00
B19: Крупа пшенная | D19: 11.00 | E19: 11.00
B20: Молоко | D20: 100.00 | E20: 100.00
B21: Вода | D21: 76.00 | E21: 76.00
B22: Сахар | D22: 5.00 | E22: 5.00
B23: соль иодированная | D23: 1.00 | E23: 1.00
A24: Масло сливочное порционно | C24: 5 | F24: 0.04 | G24: 3.63 | H24: 0.07 | I24: 33.00 | K24: №14 сб шк 2017
B25: Масло сливочное | D25: 5 | E25: 5
A26: Кофейный напиток с молоком | C26: 180 | F26: 2.85 | G26: 2.41 | H26: 14.36 | I26: 91.00 | J26: 0.19 | K26: №395 Дели2010
B27: Кофейный напиток | D27: 2.50 | E27: 2.50
B28: Сахар | D28: 10.00 | E28: 10.00
B29: Молоко | D29: 90.00 | E29: 90.00
B30: Вода | D30: 108.00 | E30: 108.00
A31: Бутерброд с маслом сливочным | C31: 30/5 | F31: 2.30 | G31: 4.50 | H31: 15.40 | I31: 111.00 | K31: №1 Дели2010
B32: Батон нарезной | D32: 30.00 | E32: 30.00
B33: Масло сливочное | D33: 5.00 | E33: 5.00
A34: Итого: | C34: 420 | F34: =F17+F26+F31+F24 -> 10.35 | G34: =G17+G26+G31+G24 -> 14.01 | H34: 52.96 | I34: 379.50 | J34: 0.40
B35: 2 - ой ЗАВТРАК
A36: Кондитерское изделие | B36: крекер | C36: 20 | D36: 20.00 | E36: 20.00 | F36: 1.80 | G36: 3.60 | H36: 12.80 | I36: 90.00
A37: Сок (или нектар) | C37: 200 | D37: 200 | E37: 200 | F37: 1.00 | G37: 0.00 | H37: 20.20 | I37: 85.34 | J37: 4.00 | K37: №418 сб дошк 2016
A38: в ассортименте
A39: Итого: | C39: 220 | F39: =F37+F36 -> 2.80 | G39: =G37+G36 -> 3.60 | H39: 33.00 | I39: 175.34 | J39: 4.00
B40: ОБЕД
A41: Салат из моркови с сахаром | C41: 60 | F41: 0.75 | G41: 0.06 | H41: 6.97 | I41: 31.40 | K41: №42 СБ дошк 2016
B42: морковь | D42: 72.50 | E42: 58.00
B43: сахар | D43: 3.00 | E43: 3.00
A44: Суп со звездочами с картофелем с куриными фрикадельками | C44: 180/15 | F44: 4.12 | G44: 4.23 | H44: 13.76 | I44: 118.41 | J44: 5.01 | K44: №88,сб дошк2016
B45: цыплята - бройлеры с/м | D45: 26.3 | E45: 17.1
B46: или фарш куриный | D46: 17.1 | E46: 17.1
B47: Лук репчатый | D47: 1.79 | E47: 1.5
B48: Яйцо | D48: 1.44 | E48: 1.2
B49: Вода для фарша | D49: 1.5 | E49: 1.5
B50: соль иодированная | D50: 0.15 | E50: 0.15
B51: Масса полуфабриката | E51: 21.5
B52: масса готовых фрикаделек | E52: 15
B53: Картофель | D53: 79.80 | E53: 60.00
B54: Морковь | D54: 10.00 | E54: 8.00
B55: Лук репчатый | D55: 9.52 | E55: 8.00
B56: суповая засыпка (звездочки) | D56: 8.00 | E56: 8.00
B57: Масло растительное | D57: 4.00 | E57: 4.00
B58: соль иодированная | D58: 1.20 | E58: 1.20
B59: Вода | D59: 132.00 | E59: 132.00
A60: Котлеты рубленые из говядины | C60: 70 | F60: 10.43 | G60: 7.70 | H60: 10.19 | I60: 151.38 | K60: СБ дошкольн. №299, 2016
B61: говядина б/к (котлетное мясо) | D61: 51.16 | E61: 49
B62: или фарш говяжий | D62: 49 | E62: 49
B63: Лук репчатый | D63: 14.64 | E63: 12.3
B64: Хлеб пшеничный | D64: 11 | E64: 11
B65: Вода | D65: 14.7 | E65: 14.7
B66: Сухари панировочные | D66: 4.00 | E66: 4.00
B67: соль иодированная | D67: 0.7 | E67: 0.7
B68: масса полуфабриката | E68: 75.3
B69: масло растительное | D69: 1 | E69: 1
A70: Капуста тушеная | C70: 150 | F70: 3.30 | G70: 4.90 | H70: 14.10 | I70: 114.60 | J70: 24.70 | K70: №354 сбдошк2016
B71: Капуста свежая | D71: 215.00 | E71: 172.00
B72: Лук репчатый | D72: 7.14 | E72: 6.00
B73: Морковь | D73: 3.75 | E73: 3.00
B74: Мука пшеничная | D74: 1.80 | E74: 1.80
B75: Масло растительное | D75: 5.25 | E75: 5.25
B76: Сахар | D76: 4.50 | E76: 4.50
B77: соль иодированная | D77: 1.00 | E77: 1.00
A78: Компот из свежемороженных фруктов | C78: 180 | F78: 0.40 | G78: 0.02 | H78: 25.00 | I78: 101.70 | J78: 0.36 | K78: №394 СБ дошк 2016
B79: фрукты свежезамороженные | D79: 20.00 | E79: 20.00
B80: Вода | D80: 183.00 | E80: 183.00
B81: сахар | D81: 10.0 | E81: 10.0
A82: Хлеб пшеничный | C82: 20 | D82: 20.00 | E82: 20.00 | F82: 1.52 | G82: 0.16 | H82: 9.84 | I82: 47.00 | J82: 0.00 | K82: табл 6 стр 134,Дели + 2012
A83: Хлеб ржаной | C83: 45 | D83: 45.00 | E83: 45.00 | F83: 2.98 | G83: 0.54 | H83: 17.82 | I83: 89.10 | K83: табл 6 стр 144,Дели + 2012
A84: Итого: | C84: 720 | F84: =F41+F44+F60+F70+F78+F83+F82 -> 23.50 | G84: =G41+G44+G60+G70+G78+G83+G82 -> 17.61 | H84: 97.68 | I84: 653.59 | J84: 30.07
B85: ПОЛДНИК
A86: Булочка дорожная | C86: 50 | F86: 3.39 | G86: 6.98 | H86: 26.07 | I86: 181.00 | K86: №453 сб дошк2016
B87: Мука пшеничная | D87: 30.50 | E87: 30.00
B88: мука пшеничная на подпыл | D88: 1.00 | E88: 1.00
B89: Сахар | D89: 6.00 | E89: 6.00
B90: Масло сливочное | D90: 6.50 | E90: 6.50
B91: соль иодированная | D91: 0.30 | E91: 0.30
B92: дрожжи сухие | D92: 0.20 | E92: 0.20
B93: вода | D93: 15.30 | E93: 15.30
B94: масса полуфабриката | E94: 57.00
B95: для крошки:
B96: мука пшеничная | D96: 1.20 | E96: 1.20
B97: масло сливочное | D97: 1.00 | E97: 1.00
B98: масса крошки | E98: 2.00
B99: масло растительное для смазки изделй | D99: 1.00 | E99: 1.00
A100: Кисломолочный напиток | C100: 180/5 | F100: 5.22 | G100: 4.50 | H100: 12.19 | I100: 109.95 | J100: 1.26 | K100: №420 СБ дошк 2016
A101: (Кефир,ряженка,катык,напиток ацидофильный) | B101: кисломолочный напиток | D101: 185.00 | E101: 180.00
B102: сахар | D102: 5.00 | E102: 5.00
A103: Омлет с сыром | C103: 10/150 | F103: 17.28 | G103: 23.13 | H103: 2.53 | I103: 287.50 | J103: 0.33 | K103: №230 сб дошк2016
B104: Яйцо | D104: 126.00 | E104: 105.00
B105: Молоко | D105: 40.00 | E105: 40.00
B106: масса омлетной смеси | E106: 145.00
B107: Сыр | D107: 10.20 | E107: 10.00
B108: Масло сливочное | D108: 3.00 | E108: 3.00
B109: соль иодированная | D109: 0.80 | E109: 0.80
B110: масса готового омлета | E110: 150.00
A111: Хлеб пшеничный | C111: 25 | D111: 25.00 | E111: 25.00 | F111: 1.90 | G111: 0.20 | H111: 12.30 | I111: 58.75 | J111: 0.00 | K111: табл 6 стр 134,Дели + 2012
A112: Итого: | C112: 410 | F112: =F86+F100+F103+F111 -> 27.79 | G112: =G86+G100+G103+G111 -> 34.81 | H112: 53.09 | I112: 637.20 | J112: 1.59
A113: ВСЕГО: | C113: =C34+C39+C84+C112 -> 1770.00 | F113: =F34+F39+F84+F112 -> 64.44 | G113: =G34+G39+G84+G112 -> 70.03 | H113: 236.73 | I113: 1845.63 | J113: 36.06
A115: День 2- ой
A116: Наименование блюд и | C116: Масса | D116: Кол - во | E116: Кол - во | F116: Пищевые вещества | I116: Энергетическая | J116: Витамин | K116: Сборник
A117: продуктов | C117: порции | D117: (в гр ) | E117: (в гр ) | I117: ценность | K117: рецептур
D118: брутто | E118: нетто | F118: белки | G118: жиры | H118: угл-ды | I118: Ккал | J118: С
B119: ЗАВТРАК
A120: Каша полбяная молочная | C120: 200 | F120: 5.83 | G120: 0.35 | H120: 25.75 | I120: 129.85 | K120: ТТК №1Д
B121: Крупа полбяная | D121: 25.00 | E121: 25.00
B122: Молоко | D122: 100.00 | E122: 100.00
B123: вода | D123: 76.00 | E123: 76.00
B124: Сахар | D124: 5.00 | E124: 5.00
B125: соль иодированная | D125: 1.00 | E125: 1.00
A126: Масло сливочное порционно | C126: 5 | F126: 0.04 | G126: 3.62 | H126: 0.07 | I126: 33.00 | K126: №6 сб дошк 2016
B127: Масло сливочное | D127: 5.00 | E127: 5.00
A128: Какао с молоком | C128: 180 | F128: 3.67 | G128: 3.19 | H128: 15.82 | I128: 107.00 | J128: 0.39 | K128: №397 Дели2010
B129: Какао-порошок | D129: 2.00 | E129: 2.00
B130: Сахар | D130: 10.00 | E130: 10.00
B131: Молоко | D131: 110.00 | E131: 110.00
B132: Вода | D132: 80.00 | E132: 80.00
A133: Бутерброд с сыром, маслом сливочным | C133: 30/10/5 | F133: 5.59 | G133: 8.00 | H133: 15.40 | I133: 156.40 | J133: 0.21 | K133: №3 сб дошк2016
B134: Батон нарезной | D134: 30.00 | E134: 30.00
B135: Сыр | D135: 10.20 | E135: 10.00
B136: Масло сливочное | D136: 5.00 | E136: 5.00
A137: Итого: | C137: 430 | F137: =F120+F128+F133+F126 -> 15.13 | G137: =G120+G128+G133+G126 -> 15.16 | H137: 57.04 | I137: 426.25 | J137: 0.60
B138: 2 - ой ЗАВТРАК
A139: Фрукты свежие | C139: 100 | D139: 114 | E139: 100 | F139: 0.40 | G139: 0.40 | H139: 9.80 | I139: 44.00 | J139: 10.00 | K139: №386 СБ
A140: (яблоки,или апельсин, или банан,или мандарин ) | K140: дошк.2016
A141: Итого: | C141: 100 | F141: =F139 -> 0.40 | G141: =G139 -> 0.40 | H141: 9.80 | I141: 44.00 | J141: 10.00
B142: ОБЕД
A143: Салат из картофеля с солеными огурцами | C143: 60 | F143: 0.82 | G143: 3.13 | H143: 5.14 | I143: 51.96 | J143: 7.20 | K143: №23 сб дошк2016
B144: огурцы соленые | D144: 32.76 | E144: 18.00
B145: картофель | D145: 32.90 | E145: 24.00
B146: морковь | D146: 15.36 | E146: 12.00
B147: лук репчатый | D147: 3.60 | E147: 3.00
B148: масло растительное | D148: 3.00 | E148: 3.00
A149: Борщ со свежей капустой, картофелем с мясными фрикадельками,со сметаной | C149: 180/10/7 | F149: 3.96 | G149: 6.84 | H149: 9.03 | I149: 120.53 | J149: 8.80 | K149: №110, сб шк2004
B150: говядина (котлетное мясо б/к ) | D150: 11.90 | E150: 11.40
B151: или фарш говяжий | D151: 11.40 | E151: 11.40
B152: лук репчатый | D152: 1.19 | E152: 1.00
B153: яйцо | D153: 0.96 | E153: 0.8
B154: вода питьевая | D154: 1.00 | E154: 1.0
B155: соль иодированная | D155: 0.10 | E155: 0.10
B156: Капуста свежая | D156: 20.00 | E156: 16.00
B157: Картофель | D157: 21.28 | E157: 16.00
B158: Морковь | D158: 12.50 | E158: 10.00
B159: Лук репчатый | D159: 9.52 | E159: 8.00
B160: Свекла | D160: 41.00 | E160: 32.00
B161: Сахар | D161: 2.40 | E161: 2.40
B162: Томат-паста | D162: 1.00 | E162: 1.00
B163: Масло растительное | D163: 4.00 | E163: 4.00
B164: соль иодированная | D164: 2.00 | E164: 2.00
B165: Бульон | D165: 140.00 | E165: 140.00
B166: Сметана | D166: 7.00 | E166: 7.00
A167: Тефтели рыбные в сметанном соусе | C167: 60/20 | F167: 7.58 | G167: 6.93 | H167: 9.94 | I167: 132.39 | J167: 0.91 | K167: №261/а СБ дошк 2011
B168: рыба (минтай с/м БГ) | D168: 55.08 | E168: 40.50
B169: или фарш рыбный | D169: 40.50 | E169: 40.50
B170: Хлеб пшеничный | D170: 6.00 | E170: 6.00
B171: вода | D171: 6.00 | E171: 6.00
B172: яйцо | D172: 6.30 | E172: 5.25
B173: Лук репчатый | D173: 10.80 | E173: 9.00
B174: Мука пшеничная | D174: 3.75 | E174: 3.75
B175: соль иодированная | D175: 0.38 | E175: 0.38
B176: Масса полуфабриката | E176: 70.50
B177: Масло растительное | D177: 2.00 | E177: 2.00
B178: соус: | K178: №372 Сб дошк 2016
B179: сметана | D179: 5.00 | E179: 5.00
B180: вода | D180: 15.00 | E180: 15.00
B181: Мука пшеничная | D181: 1.50 | E181: 1.50
B182: соль иодированная | D182: 0.13 | E182: 0.13
B183: масса соуса | E183: 20.00
A184: Пюре Картофельное | C184: 140 | F184: 2.86 | G184: 4.48 | H184: 19.07 | I184: 128.10 | J184: 0.23 | K184: № 339 СБ дошк 2016
B185: Картофель | D185: 159.60 | E185: 119.70
B186: Молоко | D186: 22.12 | E186: 21.00
B187: Масло сливочное | D187: 5.00 | E187: 5.00
B188: соль иодированная | D188: 0.52 | E188: 0.52
A189: Кисель | C189: 180 | H189: 18.00 | I189: 72.00 | K189: № 648, сб шк2004
B190: Кисель-концентрат | D190: 21.00 | E190: 21.00
B191: Сахар | D191: 9.00 | E191: 9.00
B192: вода | D192: 180.00 | E192: 180.00
A193: Хлеб пшеничный | C193: 20 | D193: 20.00 | E193: 20.00 | F193: 1.52 | G193: 0.16 | H193: 9.84 | I193: 47.00 | J193: 0.00 | K193: табл 6 стр 134,Дели + 2012
A194: Хлеб ржаной | C194: 45 | D194: 45.00 | E194: 45.00 | F194: 2.98 | G194: 0.54 | H194: 17.82 | I194: 89.10 | K194: табл 6 стр 144,Дели + 2012
A195: Итого: | C195: 722 | F195: =F143+F149+F167+F184+F193+F194 -> 19.72 | G195: =G143+G149+G167+G184+G193+G194 -> 22.08 | H195: 70.84 | I195: 569.08 | J195: 17.14
B196: ПОЛДНИК
A197: Кисломолочный напиток | C197: 180 | F197: 5.22 | G197: 4.50 | H197: 7.56 | I197: 92.00 | J197: 0.54 | K197: №420 СБ дошк 2016
A198: (Кефир,ряженка,катык,напиток ацидофильный) | B198: кисломолочный напиток | D198: 185 | E198: 180
A199: Запеканка творожная с повидлом | C199: 120/30 | F199: 21.17 | G199: 14.47 | H199: 40.09 | I199: 372.60 | J199: 0.44 | K199: №251, сбдошк 2016
B200: Творог | D200: 112.20 | E200: 110.00
B201: Крупа манная | D201: 7.20 | E201: 7.20
B202: Яйцо | D202: 6.00 | E202: 5.00
B203: Сахар | D203: 9.60 | E203: 9.60
B204: Сметана | D204: 4.80 | E204: 4.80
B205: Масло сливочное | D205: 4.80 | E205: 4.80
B206: Сухари панировочные | D206: 4.80 | E206: 4.80
... 745 more rows

Sheet от 1года до 3 лет
A1: Утверждаю | H1: Согласовано
A2: Директор ООО"АБК - Пэймент" | H2: Руководитель дошкольной образовательной
A3: Рахматуллин Р.Р. | H3: организации
E6: Примерное 10-дневное меню
E7: для организации питания детей в дошкольных учреждениях
E8: с 8-10,5 - часовым пребыванием от 1 года до 3 лет
A10: День 1 - ый
A11: Наименование блюд и | C11: Масса | D11: Кол - во | E11: Кол - во | F11: Пищевые вещества | I11: Энергетическая | J11: витамин | K11: Сборник
A12: продуктов | C12: порции | D12: (в гр ) | E12: (в гр ) | I12: ценность | K12: рецептур
D13: брутто | E13: нетто | F13: белки | G13: жиры | H13: угл-ды | I13: Ккал | J13: С
A15: Каша "Дружба" молочная | C15: 150 | F15: 2.51 | G15: 0.95 | H15: 18.00 | I15: 88.50 | K15: ТТК №7Д
B16: Крупа рисовая | D16: 11 | E16: 11
B17: Крупа пшенная | D17: 8 | E17: 8
B18: Молоко | D18: 80 | E18: 80
B19: Вода | D19: 52 | E19: 52
B20: Сахар | D20: 4 | E20: 4
B21: соль иодированная | D21: 0.8 | E21: 0.8
A22: Масло сливочное порционно | C22: 5 | F22: 0.04 | G22: 3.63 | H22: 0.07 | I22: 33.00 | K22: №6 сб дошк 2016
B23: Масло сливочное | D23: 5 | E23: 5
A24: Кофейный напиток с молоком | C24: 165 | F24: 2.57 | G24: 2.2 | H24: 11.69 | I24: 77 | J24: 0.16 | K24: №395Дели2010
B25: Кофейный напиток | D25: 2 | E25: 2
B26: Сахар | D26: 7.7 | E26: 7.7
B27: Молоко | D27: 75 | E27: 75
B28: вода | D28: 106 | E28: 106
A29: Бутерброд с маслом сливочным | C29: 25/5 | F29: 1.9 | G29: 4.4 | H29: 13 | I29: 99 | K29: №1 Дели2010
B30: Батон нарезной | D30: 25 | E30: 25
B31: Масло сливочное | D31: 5 | E31: 5
A32: Итого: | C32: 350 | F32: =F15+F24+F29+F22 -> 7.02 | G32: =G15+G24+G29+G22 -> 11.18 | H32: 42.76 | I32: 297.50 | J32: 0.16
B33: 2 - ой ЗАВТРАК
A34: Кондитерское изделие | B34: крекер | C34: 15 | D34: 15.00 | E34: 15.00 | F34: 1.35 | G34: 2.70 | H34: 9.60 | I34: 67.47
A35: Сок | C35: 200 | D35: 200 | E35: 200 | F35: 1.00 | G35: 0.00 | H35: 20.20 | I35: 85.34 | J35: 4.00 | K35: №418 сб дошк 2016
A36: в ассортименте в инд.упаковке
A37: Итого: | C37: 215 | F37: =F35+F34 -> 2.35 | G37: =G35+G34 -> 2.70 | H37: 29.80 | I37: 152.81 | J37: 4.00
B38: ОБЕД
A39: Салат из моркови с сахаром | C39: 40 | F39: 0.50 | G39: 0.04 | H39: 4.65 | I39: 20.93 | K39: №42 СБ дошк 2016
B40: морковь | D40: 48.00 | E40: 38.00
B41: сахар | D41: 2.00 | E41: 2.00
A42: Суп со звездочами с картофелем с куриными фрикадельками | C42: 150/10 | F42: 2.90 | G42: 2.99 | H42: 10.20 | I42: 85.97 | J42: 3.75 | K42: 140сбшк2004
B43: цыплята - бройлеры с/м | D43: 17.5 | E43: 11.4
B44: или фарш куриный | D44: 11.4 | E44: 11.4
B45: Лук репчатый | D45: 1.19 | E45: 1
B46: Яйцо | D46: 0.96 | E46: 0.8
B47: Вода для фарша | D47: 1 | E47: 1
B48: соль иодированная | D48: 0.1 | E48: 0.1
B49: масса готовых фрикаделек | E49: 10
B50: Картофель | D50: 59.90 | E50: 45.00
B51: Морковь | D51: 7.50 | E51: 6.00
B52: Лук репчатый | D52: 7.14 | E52: 6.00
B53: суповая засыпка (звездочки) | D53: 6.00 | E53: 6.00
B54: Масло растительное | D54: 3.00 | E54: 3.00
B55: соль иодированная | D55: 1.00 | E55: 1.00
B56: Вода | D56: 114.00 | E56: 114.00
A57: Котлеты рубленные из говядины | C57: 50 | F57: 7.45 | G57: 5.50 | H57: 7.28 | I57: 108.13 | K57: СБ дошкольн. №299, 2016
B58: говядина б/к (котлетное мясо) | D58: 36.57 | E58: 35
B59: или фарш говяжий | D59: 35 | E59: 35
B60: лук репчатый | D60: 10.4 | E60: 8.75
B61: Хлеб пшеничный | D61: 8.13 | E61: 8.13
B62: Вода | D62: 5.2 | E62: 5.2
B63: сухари панировочные | D63: 2.8 | E63: 2.8
B64: соль иодированная | D64: 0.4 | E64: 0.4
B65: масса полуфабриката | E65: 61.9
B66: Масло растительное | D66: 0.60 | E66: 0.60
A67: Капуста тушеная | C67: 120 | F67: 2.48 | G67: 3.88 | H67: 11.31 | I67: 90.12 | J67: 20.59 | K67: №354 сбдошк2016
B68: Капуста свежая | D68: 172 | E68: 137.6
B69: Лук репчатый | D69: 5.71 | E69: 4.8
B70: Морковь | D70: 3 | E70: 2.4
B71: Мука пшеничная | D71: 1.44 | E71: 1.44
B72: Масло растительное | D72: 4.2 | E72: 4.2
B73: Сахар | D73: 3.6 | E73: 3.6
B74: соль иодированная | D74: 0.8 | E74: 0.8
A75: Компот из свежемороженных фруктов | C75: 150 | F75: 0.33 | G75: 0.02 | H75: 20.83 | I75: 84.75 | J75: 0.30 | K75: №394 СБ дошк 2016
B76: фрукты свежезамороженные | D76: 16.50 | E76: 16.50
B77: Вода | D77: 152.00 | E77: 152.00
B78: сахар | D78: 8.0 | E78: 8.0
A79: Хлеб пшеничный | C79: 15 | D79: 15.00 | E79: 15.00 | F79: 1.14 | G79: 0.12 | H79: 7.38 | I79: 35.25 | J79: 0.00 | K79: табл 6 стр 134,Дели + 2012
A80: Хлеб ржаной | C80: 40 | D80: 40 | E80: 40 | F80: 2.64 | G80: 0.48 | H80: 15.84 | I80: 79.2 | K80: табл 6 стр 144,Дели + 2012
A81: Итого: | C81: 575.00 | F81: =F39+F42+F57+F67+F75+F80+F79 -> 17.44 | G81: =G39+G42+G57+G67+G75+G80+G79 -> 13.03 | H81: 77.49 | I81: 504.35 | J81: 24.64
B82: ПОЛДНИК
A83: Кисломолочный напиток | C83: 150/5 | F83: 4.35 | G83: 3.75 | H83: 10.99 | I83: 94.95 | J83: 1.05 | K83: №420 Сб дошк 2016
A84: (Кефир,ряженка,катык,напиток ацидофильный) | B84: кисломолочный напиток | D84: 155 | E84: 150
B85: сахар | D85: 5 | E85: 5
A86: Булочка дорожная | C86: 35 | F86: 2.73 | G86: 4.90 | H86: 18.25 | I86: 126.70 | K86: №453 сб дошк2016
B87: Мука пшеничная | D87: 21.35 | E87: 21.00
B88: мука пшеничная на подпыл | D88: 0.70 | E88: 0.70
B89: Сахар | D89: 4.20 | E89: 4.20
B90: Масло сливочное | D90: 4.55 | E90: 4.55
B91: соль иодированная | D91: 0.21 | E91: 0.21
B92: дрожжи сухие | D92: 0.14 | E92: 0.14
B93: вода | D93: 10.70 | E93: 10.70
B94: масса полуфабриката | E94: 39.90
B95: для крошки:
B96: мука пшеничная | D96: 0.84 | E96: 0.84
B97: масло сливочное | D97: 0.70 | E97: 0.70
B98: масса крошки | E98: 1.40
B99: масло растительное для смазки изделй | D99: 0.70 | E99: 0.70
A100: Омлет с сыром | C100: 10/150 | F100: 17.28 | G100: 23.13 | H100: 2.53 | I100: 287.50 | J100: 0.33 | K100: №230 сб дошк 2016
B101: Яйцо | D101: 126.00 | E101: 105.00
B102: Молоко | D102: 40.00 | E102: 40.00
B103: масса омлетной смеси | E103: 145.00
B104: Сыр | D104: 10.20 | E104: 10.00
B105: Масло сливочное | D105: 3.00 | E105: 3.00
B106: соль иодированная | D106: 0.80 | E106: 0.80
B107: масса готового омлета | E107: 150.00
A108: Хлеб пшеничный | C108: 20 | D108: 20 | E108: 20 | F108: 1.52 | G108: 0.16 | H108: 9.84 | I108: 47.00 | J108: 0.00 | K108: табл 6 стр 134,Дели + 2012
A109: Итого: | C109: 360.00 | F109: =F100+F83+F86+F108 -> 25.88 | G109: =G100+G83+G86+G108 -> 31.94 | H109: 41.61 | I109: 556.15 | J109: 1.38
A110: ВСЕГО: | C110: =C32+C37+C81+C109 -> 1500.00 | F110: =F32+F37+F81+F109 -> 52.69 | G110: =G32+G37+G81+G109 -> 58.85 | H110: 191.66 | I110: 1510.81 | J110: 30.18
A112: День 2- ой
A113: Наименование блюд и | C113: Масса | D113: Кол - во | E113: Кол - во | F113: Пищевые вещества | I113: Энергетическая | J113: Витамин | K113: Сборник
A114: продуктов | C114: порции | D114: (в гр ) | E114: (в гр ) | I114: ценность | K114: рецептур
D115: брутто | E115: нетто | F115: белки | G115: жиры | H115: угл-ды | I115: Ккал | J115: С
B116: ЗАВТРАК
A117: Каша полбяная молочная | C117: 150 | F117: 4.16 | G117: 0.17 | H117: 17.93 | I117: 90.00 | K117: ТТК №1Д
B118: Крупа полбяная | D118: 19 | E118: 19
B119: Молоко | D119: 80 | E119: 80
B120: вода | D120: 52 | E120: 52
B121: Сахар | D121: 4 | E121: 4
B122: соль иодированная | D122: 0.8 | E122: 0.8
A123: Масло сливочное порционно | C123: 5 | F123: 0.04 | G123: 3.62 | H123: 0.07 | I123: 33.00 | K123: №6 сб дошк 2016
B124: Масло сливочное | D124: 5 | E124: 5
A125: Какао с молоком | C125: 160 | F125: 3.47 | G125: 2.99 | H125: 14.26 | I125: 97.90 | J125: 0.32 | K125: №397 Дели2010
B126: Какао-порошок | D126: 1.7 | E126: 1.7
B127: Сахар | D127: 9 | E127: 9
B128: Молоко | D128: 92 | E128: 92
B129: вода | D129: 77 | E129: 77
A130: Бутерброд с сыром, маслом сливочным | C130: 25/5/5 | F130: 3.50 | G130: 5.95 | H130: 12.90 | I130: 119.60 | J130: 0.04 | K130: №3Дели2010
B131: Батон нарезной | D131: 25 | E131: 25
B132: Сыр | D132: 5.1 | E132: 5
B133: Масло сливочное | D133: 5 | E133: 5
A134: Итого: | C134: 350 | F134: =F117+F125+F130+F123 -> 11.17 | G134: =G117+G125+G130+G123 -> 12.73 | H134: 45.16 | I134: 340.50 | J134: 0.36
B135: 2 - ой ЗАВТРАК
A136: Фрукты свежие | C136: 95 | D136: 108.3 | E136: 95 | F136: 0.38 | G136: 0.38 | H136: 9.31 | I136: 41.80 | J136: 9.50 | K136: №386 СБ
A137: (яблоки,или апельсин, или банан,или мандарин ) | K137: дошк.2016
A138: Итого: | C138: 95 | F138: =F136 -> 0.38 | G138: =G136 -> 0.38 | H138: 9.31 | I138: 41.80 | J138: 9.50
B139: ОБЕД
A140: Салат из картофеля с солеными огурцами | C140: 40 | F140: 0.55 | G140: 2.09 | H140: 3.43 | I140: 34.64 | J140: 4.80 | K140: №23 сб дошк2016
B141: огурцы соленые | D141: 21.84 | E141: 12.00
B142: картофель | D142: 21.92 | E142: 16.00
B143: морковь | D143: 10.24 | E143: 8.00
B144: лук репчатый | D144: 2.40 | E144: 2.00
B145: масло растительное | D145: 2.00 | E145: 2.00
A146: Борщ со свежей капустой, картофелем с мясными фрикадельками,со сметаной | C146: 150/10/7 | F146: 3.60 | G146: 5.86 | H146: 6.84 | I146: 99.75 | J146: 6.67 | K146: №110,сбшк2004
B147: говядина (котлетное мясо б/к) | D147: 11.90 | E147: 11.40
B148: или фарш говяжий | D148: 11.40 | E148: 11.40
B149: лук репчатый | D149: 1.19 | E149: 1.00
B150: яйцо | D150: 0.96 | E150: 0.8
B151: вода питьевая | D151: 1.00 | E151: 1.0
B152: соль иодированная | D152: 0.10 | E152: 0.10
B153: Капуста свежая | D153: 15.0 | E153: 12.0
B154: Картофель | D154: 15.96 | E154: 12.0
B155: Морковь | D155: 7.5 | E155: 6.0
B156: Лук репчатый | D156: 7.14 | E156: 6.0
B157: Свекла | D157: 30.72 | E157: 24.0
B158: Сахар | D158: 1.8 | E158: 1.8
B159: Масло растительное | D159: 3.0 | E159: 3.0
B160: соль иодированная | D160: 1.5 | E160: 1.5
B161: Бульон | D161: 120 | E161: 120.0
B162: Сметана | D162: 7.0 | E162: 7.0
A163: Тефтели рыбные в сметанном соусе | C163: 45/15 | F163: 5.66 | G163: 5.17 | H163: 7.42 | I163: 98.85 | J163: 0.68 | K163: №261/а СБ дошк 2011
B164: рыба (минтай с/м БГ) | D164: 41.62 | E164: 30.60
B165: или фарш рыбный | D165: 30.60 | E165: 30.60
B166: Хлеб пшеничный | D166: 4.50 | E166: 4.50
B167: вода | D167: 4.50 | E167: 4.50
B168: яйцо | D168: 4.80 | E168: 4.00
B169: Лук репчатый | D169: 8.10 | E169: 6.75
B170: Мука пшеничная | D170: 2.70 | E170: 2.70
B171: соль иодированная | D171: 0.27 | E171: 0.27
B172: Масса полуфабриката | E172: 53.00
B173: Масло растительное | D173: 1.80 | E173: 1.80
B174: соус: | K174: №372 Сб дошк 2016
B175: сметана | D175: 3.75 | E175: 3.75
B176: вода | D176: 11.25 | E176: 11.25
B177: Мука пшеничная | D177: 1.15 | E177: 1.15
B178: соль иодированная | D178: 0.10 | E178: 0.10
B179: масса соуса | E179: 15.00
A180: Пюре Картофельное | C180: 120 | F180: 2.46 | G180: 3.84 | H180: 16.35 | I180: 109.80 | J180: 0.20 | K180: № 339 СБ дошк 2016
B181: Картофель | D181: 136.80 | E181: 102.60
B182: Молоко | D182: 18.96 | E182: 18.00
B183: Масло сливочное | D183: 4.20 | E183: 4.20
B184: соль иодированная | D184: 0.45 | E184: 0.45
A185: Кисель | C185: 150 | H185: 15.00 | I185: 60.00 | K185: №648 сбшк2004
B186: Кисель-концентрат | D186: 17.50 | E186: 17.50
B187: Сахар | D187: 7.00 | E187: 7.00
B188: вода | D188: 150.00 | E188: 150.00
A189: Хлеб пшеничный | C189: 15 | D189: 15.00 | E189: 15.00 | F189: 1.14 | G189: 0.12 | H189: 7.38 | I189: 35.25 | J189: 0.00 | K189: табл 6 стр 134,Дели + 2012
A190: Хлеб ржаной | C190: 40 | D190: 40 | E190: 40 | F190: 2.64 | G190: 0.48 | H190: 15.84 | I190: 79.2 | K190: табл 6 стр 144,Дели + 2012
A191: Итого: | C191: 582 | F191: =F140+F146+F163+F190+F189+F180 -> 16.05 | G191: =G140+G146+G163+G190+G189+G180 -> 17.56 | H191: 57.26 | I191: 457.49 | J191: 12.35
B192: ПОЛДНИК
A193: Кисломолочный напиток | C193: 150 | F193: 4.35 | G193: 3.75 | H193: 6.30 | I193: 76.00 | J193: 0.45 | K193: №420 Сб дошк 2016
A194: (кефир,ряженка,катык,напиток ацидофильный) | B194: кисломолочный напиток | D194: 155 | E194: 150
A195: Запеканка творожная с повидлом | C195: 110/20 | F195: 19.37 | G195: 13.26 | H195: 31.87 | I195: 321.70 | J195: 0.36 | K195: № 251 сб дошк 2016
B196: Творог | D196: 103.2 | E196: 101.2
B197: крупа манная | D197: 6.6 | E197: 6.6
B198: Яйцо | D198: 5.28 | E198: 4.4
B199: Сахар | D199: 8.8 | E199: 8.8
B200: Сметана | D200: 4.4 | E200: 4.4
B201: Масло сливочное | D201: 4.4 | E201: 4.4
B202: Сухари панировочные | D202: 4.4 | E202: 4.4
B203: соль иодированная | D203: 0.55 | E203: 0.55
B204: повидло | D204: 20 | E204: 20
A205: Итого: | C205: 280 | F205: =F195+F193 -> 23.72 | G205: =G195+G193 -> 17.01 | H205: 38.17 | I205: 397.70 | J205: 0.81
... 741 more rows
